bitfinex/quotes_ETHUSD_20250721
["timestamp","ask_amount","ask_price","bid_price","bid_amount"]
[1753083957702,0.1312,3789.7,3789.5,3.0]
[1753083957883,0.4294,3789.6,3789.5,3.0]
[1753083960508,0.1312,3789.7,3789.5,5.63887056]
[1753083961518,0.1312,3789.7,3789.5,3.0]
[1753083961913,0.5606,3789.7,3789.5,3.0]
[1753083962738,0.5606,3789.7,3789.5,5.63886839]
[1753083962908,0.5606,3789.7,3789.5,3.0]
[1753083963906,0.5606,3789.7,3789.5,5.6388582]
[1753083964112,0.5606,3789.7,3789.6,2.63880092]
[1753083964329,0.5606,3789.7,3789.5,5.6388438]
[1753083964805,0.5606,3789.7,3789.6,2.63880092]
[1753083965008,0.1312,3789.7,3789.6,2.63880092]
[1753083968040,0.1312,3789.7,3789.5,5.63884398]
[1753083968245,3.996,3789.6,3789.5,5.63884398]
[1753083968440,3.996,3789.6,3789.5,3.0]
[1753083968747,4.4254,3789.6,3789.5,5.63887056]
[1753083969444,4.4254,3789.6,3789.5,3.0]
[1753083969806,4.4254,3789.6,3789.5,5.63887056]
[1753083970842,4.4254,3789.6,3789.5,3.0]
[1753083971043,0.7753,3789.5,3789.1,0.1312]
[1753083971249,0.5711,3789.4,3789.1,2.63913172]
[1753083971545,0.5711,3789.4,3789.0,5.63919859]
[1753083971546,0.4399,3789.3,3789.0,5.63919859]
[1753083971746,4.4359,3789.2,3789.0,5.63919859]
[1753083972925,4.4359,3789.2,3789.0,3.0]
[1753083973126,1.2378,3789.1,3788.8,0.14416135]
[1753083973339,1.369,3789.1,3788.8,0.14416135]
[1753083973548,0.4399,3789.0,3788.8,0.14416135]
[1753083975771,3.07912793,3789.0,3788.8,0.14416135]
[1753083975917,2.63922793,3789.0,3788.8,0.14416135]
[1753083976125,0.4399,3788.9,3788.8,0.14416135]
[1753083976758,1.2467,3788.9,3788.8,0.14416135]
[1753083977090,3.88598844,3788.9,3788.8,0.14416135]
[1753083977719,7.88198844,3788.9,3788.8,0.14416135]
[1753083978765,7.88198844,3788.9,3788.8,0.001]
[1753083987601,15.68198844,3788.9,3788.8,0.001]
[1753083989987,2.63977614,3788.2,3788.1,0.041]
[1753083990288,19.76111304,3788.2,3788.1,0.041]
[1753083990477,20.20101304,3788.2,3788.1,0.041]
[1753083993081,23.20101304,3788.2,3788.1,0.041]
[1753083995495,5.63991552,3788.0,3787.9,1e-08]
[1753083995678,5.63991552,3788.0,3787.7,0.001]
[1753083995679,6.41335491,3787.8,3787.7,1e-08]
[1753083995870,10.41035491,3787.8,3787.7,1e-08]
[1753083996067,10.85025491,3787.8,3787.7,1e-08]
[1753083996393,10.85025491,3787.8,3787.5,0.001]
[1753083996394,2.64019431,3787.6,3787.5,1e-08]
[1753083996611,16.42333121,3787.6,3787.5,1e-08]
[1753083996903,16.86323121,3787.6,3787.5,1e-08]
[1753084000480,16.86423121,3787.6,3787.5,1e-08]
[1753084001978,12.86623121,3787.6,3787.5,1e-08]
[1753084002178,16.86423121,3787.6,3787.5,1e-08]
[1753084003007,12.86623121,3787.6,3787.5,1e-08]
[1753084003204,16.86423121,3787.6,3787.5,1e-08]
[1753084006716,3.43390345,3787.3,3787.2,1e-08]
[1753084006901,3.43390345,3787.3,3787.1,0.04]
[1753084006902,12.57881007,3787.2,3787.1,1e-08]
[1753084007102,13.01251007,3787.2,3787.1,1e-08]
[1753084008204,13.01251007,3787.2,3785.3,0.7627]
[1753084008205,3.8075,3786.9,3785.3,0.7627]
[1753084008388,3.44867056,3786.2,3785.5,0.4638]
[1753084008590,13.78267056,3786.2,3785.3,0.7627]
[1753084008790,13.78267056,3786.2,3785.7,0.4638]
[1753084009803,14.21637056,3786.2,3785.7,0.4638]
[1753084010001,14.21637056,3786.2,3785.9,0.001]
[1753084011014,13.78267056,3786.2,3785.9,0.001]
[1753084012116,10.335,3786.2,3785.9,0.001]
[1753084012313,12.97617056,3786.2,3786.1,0.5038]
[1753084012505,10.335,3786.2,3786.1,0.5038]
[1753084013301,6.336,3786.2,3786.1,0.5038]
[1753084013512,6.336,3786.2,3786.1,3.14504032]
[1753084013796,10.335,3786.2,3786.1,3.14504032]
[1753084014193,10.335,3786.2,3786.1,3.94404032]
[1753084014525,6.336,3786.2,3786.1,3.94404032]
[1753084014713,6.336,3786.2,3786.1,4.6026766]
[1753084014915,10.335,3786.2,3786.1,4.6026766]
[1753084015224,0.132,3786.3,3786.1,4.6026766]
[1753084015225,0.132,3786.3,3786.2,3.43277056]
[1753084015394,6.337,3787.3,3786.4,0.7916]
[1753084015596,6.337,3787.3,3786.1,0.69863628]
[1753084015597,0.132,3786.7,3786.6,3.43249156]
[1753084015829,4.131,3786.7,3786.6,3.89629156]
[1753084020421,4.131,3786.7,3786.6,1.2554]
[1753084020618,4.131,3786.7,3786.3,0.7515]
[1753084020954,4.131,3786.7,3786.2,0.4638]
[1753084020955,0.132,3786.3,3786.2,0.4638]
[1753084021136,4.13,3786.3,3786.2,0.4638]
[1753084021635,4.13,3786.3,3786.2,3.10497056]
[1753084022440,4.13,3786.3,3786.2,0.4638]
[1753084023539,4.13,3786.3,3786.2,3.10497056]
[1753084024839,4.13,3786.3,3786.2,4.57470815]
[1753084025010,3.998,3786.3,3786.2,4.57470815]
[1753084027139,2.933127,3786.6,3786.5,2.6409613]
[1753084027354,6.931127,3786.6,3786.5,3.1047613]
[1753084029055,6.799127,3786.6,3786.5,3.1047613]
[1753084029223,6.799127,3786.6,3786.5,4.82450551]
[1753084036471,6.799127,3786.6,3786.5,3.8837613]
[1753084041284,6.799127,3786.6,3786.5,3.1047613]
[1753084053892,2.801127,3786.6,3786.5,3.8642613]
[1753084054063,6.799127,3786.6,3786.5,3.9962613]
[1753084054261,2.801127,3786.6,3786.5,8.02615545]
[1753084054462,6.799127,3786.6,3786.5,8.02615545]
[1753084056296,6.799127,3786.6,3786.5,6.80285545]
[1753084056498,6.799127,3786.6,3786.5,7.99975545]
[1753084058600,6.799127,3786.6,3786.5,7.55515545]
[1753084058801,6.799127,3786.6,3786.5,5.6409613]
[1753084059400,6.799127,3786.6,3786.5,6.0855613]
[1753084060897,2.801127,3786.6,3786.5,6.0855613]
[1753084061203,6.798127,3786.6,3786.5,6.0855613]
[1753084063614,6.798127,3786.6,3786.5,5.6409613]
[1753084063790,6.798127,3786.6,3786.5,6.1033613]
[1753084064290,6.798127,3786.6,3786.5,5.6409613]
[1753084065170,6.798127,3786.6,3786.5,5.6419613]
[1753084066307,6.798127,3786.6,3786.5,2.6419613]
[1753084066686,6.798127,3786.6,3786.5,3.1043613]
[1753084066895,6.798127,3786.6,3786.5,3.77339161]
[1753084067296,6.798127,3786.6,3786.5,6.77339161]
[1753084068501,6.798127,3786.6,3786.5,7.67879161]
[1753084070419,2.801127,3786.6,3786.5,7.67879161]
[1753084070717,0.002,3787.5,3787.4,2.64033373]
[1753084070881,3.999,3787.5,3787.4,2.64033373]
[1753084075328,0.002,3787.5,3787.4,2.64033373]
[1753084075531,3.999,3787.5,3787.4,3.22784876]
[1753084076797,0.002,3787.5,3787.4,3.69024876]
[1753084077026,3.999,3787.5,3787.4,3.69024876]
[1753084077734,3.999,3787.5,3787.4,7.51974876]
[1753084077939,3.999,3787.5,3787.4,7.65174876]
[1753084078137,0.002,3787.5,3787.4,7.65174876]
[1753084078647,3.996,3787.8,3787.4,7.65174876]
[1753084078648,0.002,3788.3,3788.2,2.63977614]
[1753084078820,0.002,3788.3,3788.2,6.2475102]
[1753084079015,3.998,3788.3,3788.2,6.7099102]
[1753084079448,0.002,3788.3,3788.2,6.7099102]
[1753084079649,0.002,3788.3,3788.2,6.8411102]
[1753084090536,1e-08,3788.4,3788.3,6.39850646]
[1753084090730,1e-08,3788.4,3788.3,9.11713826]
[1753084091664,1e-08,3788.4,3788.3,9.81840469]
[1753084092170,1e-08,3789.1,3789.0,5.63921879]
[1753084092333,1e-08,3789.1,3789.0,16.40585569]
[1753084092541,1e-08,3789.1,3789.0,18.87147171]
[1753084093475,1e-08,3789.2,3789.1,5.63914913]
[1753084093649,1e-08,3789.2,3789.1,6.48924062]
[1753084093965,1e-08,3789.2,3789.1,6.89274913]
[1753084094569,1e-08,3789.2,3789.1,7.44274913]
[1753084094868,1e-08,3789.2,3789.1,9.93435631]
[1753084096095,1e-08,3789.2,3789.1,9.38435631]
[1753084096274,1e-08,3789.2,3789.1,12.94945631]
[1753084096774,1e-08,3789.2,3789.1,13.37935631]
[1753084096979,1e-08,3789.2,3789.1,2.63914913]
[1753084098280,1e-08,3789.2,3789.1,3.09544062]
[1753084098778,1e-08,3789.2,3789.1,3.06904913]
[1753084099280,1e-08,3789.2,3789.1,3.82244913]
[1753084102378,1e-08,3789.2,3789.1,3.84884062]
[1753084102581,1e-08,3789.2,3789.1,8.82658112]
[1753084102787,1e-08,3789.2,3789.1,8.80018963]
[1753084103493,1e-08,3789.2,3789.1,12.79418963]
[1753084106103,1e-08,3789.2,3789.1,8.80018963]
[1753084106308,1e-08,3789.2,3789.1,12.79418963]
[1753084107712,1e-08,3789.2,3789.1,12.36328963]
[1753084108625,1e-08,3789.2,3789.1,8.37028963]
[1753084108908,1e-08,3789.2,3789.1,6.39254913]
[1753084109499,1e-08,3789.2,3789.1,5.63914913]
[1753084109701,0.45940001,3789.2,3789.1,2.63914913]
[1753084110484,0.45940001,3789.2,3789.0,2.63917239]
[1753084110688,0.45940001,3789.2,3789.0,3.0]
[1753084110897,0.8168,3789.1,3788.9,0.1312]
[1753084111098,0.4594,3789.0,3788.4,2.7707885]
[1753084111307,0.8168,3788.9,3788.6,3.0]
[1753084111622,0.8168,3788.7,3788.3,0.001]
[1753084111818,0.8168,3788.7,3788.3,3.001]
[1753084112019,0.4594,3788.6,3788.3,3.001]
[1753084112183,0.4594,3788.6,3788.3,0.001]
[1753084112594,0.8168,3788.7,3788.3,0.001]
[1753084112793,0.8168,3788.4,3788.3,0.001]
[1753084113295,1.2762,3788.4,3788.3,0.001]
[1753084113512,3.993,3788.7,3788.5,2.63952124]
[1753084113717,3.993,3788.7,3788.6,2.63949743]
[1753084113929,4.4524,3788.7,3788.6,2.63949743]
[1753084114219,4.4524,3788.7,3788.3,0.001]
[1753084114384,0.1312,3788.5,3788.3,0.001]
[1753084114846,0.4594,3788.4,3788.3,2.64070646]
[1753084115057,0.1312,3788.5,3788.4,2.63963678]
[1753084115712,0.5906,3788.5,3788.4,2.63963678]
[1753084116018,0.8168,3788.6,3788.5,2.63956711]
[1753084116331,5.2702,3788.6,3788.5,2.63956711]
[1753084118525,3.994,3788.6,3788.5,2.63956711]
[1753084120112,0.7768,3788.8,3788.7,2.63942777]
[1753084120316,3.994,3788.8,3788.7,2.63942777]
[1753084120740,3.994,3788.8,3788.5,0.1312]
[1753084120913,3.994,3788.8,3788.7,2.63942777]
[1753084122129,4.4566,3788.8,3788.7,2.63942777]
[1753084122466,0.8191,3788.7,3788.3,0.001]
[1753084122753,1.2817,3788.7,3788.3,0.001]
[1753084122952,0.1312,3788.5,3788.3,2.64069874]
[1753084123344,0.4626,3788.4,3788.3,2.64069874]
[1753084124566,0.8191,3788.7,3788.6,2.63949743]
[1753084124951,1.2817,3788.7,3788.6,2.63949743]
[1753084125350,4.8281,3788.7,3788.6,2.63949743]
[1753084126626,4.009,3788.7,3788.6,2.63949743]
[1753084126853,4.009,3788.7,3788.6,5.63949743]
[1753084127042,4.009,3788.7,3788.6,6.48326718]
[1753084128233,0.8902,3789.0,3788.9,2.63928844]
[1753084128432,4.8982,3789.0,3788.9,2.63928844]
[1753084128735,1e-08,3789.2,3789.1,2.63914913]
[1753084129053,4.00800001,3789.2,3789.1,2.63914913]
[1753084129250,1e-08,3789.2,3789.1,2.63914913]
[1753084129460,4.00800001,3789.2,3789.1,6.16699289]
[1753084129659,4.00800001,3789.2,3789.1,6.62959289]
[1753084130065,4.00800001,3789.2,3789.1,6.16699289]
[1753084130880,4.00800001,3789.2,3789.1,6.62959289]
[1753084131976,4.00800001,3789.2,3789.1,6.16699289]
[1753084140700,4.47060001,3789.2,3789.1,2.63914913]
[1753084140901,0.1312,3789.1,3788.8,2.63935301]
[1753084141073,0.782,3788.9,3788.4,0.1322]
[1753084141273,4.003,3788.8,3788.7,2.63942777]
[1753084141602,4.5968,3788.8,3788.5,2.63956711]
[1753084141799,4.1342,3788.8,3788.5,2.63956711]
[1753084141989,0.4626,3788.7,3788.6,3.0]
[1753084142187,0.8071,3788.6,3788.4,0.001]
[1753084142587,0.4626,3788.5,3788.4,0.001]
[1753084142998,0.5938,3788.5,3788.4,0.001]
[1753084143372,0.1312,3788.5,3788.4,0.001]
[1753084143566,0.5938,3788.5,3788.4,0.001]
[1753084147508,0.1312,3788.5,3788.4,2.64063678]
[1753084147818,6.331,3789.1,3788.5,2.63956711]
[1753084147819,0.1312,3788.8,3788.5,2.63956711]
[1753084147989,4.001,3788.7,3788.6,2.63949743]
[1753084148187,0.1312,3788.8,3788.7,2.63942777]
[1753084148397,0.7932,3788.9,3788.7,2.63942777]
[1753084148398,0.7932,3788.9,3788.8,2.6393581]
[1753084148709,4.7942,3788.9,3788.8,2.6393581]
[1753084149111,4.001,3788.9,3788.8,2.6393581]
[1753084149291,7.2496,3789.1,3789.0,2.63921879]
[1753084149494,11.7132,3789.1,3789.0,2.63921879]
[1753084151184,7.7122,3789.1,3789.0,2.63921879]
[1753084151395,11.7132,3789.1,3789.0,2.63921879]
[1753084151801,7.2496,3789.1,3789.0,2.63921879]
[1753084152022,10.4622,3789.1,3789.0,2.63921879]
[1753084152546,10.8941,3789.1,3788.4,3.660338]
[1753084152698,10.4622,3789.1,3789.0,2.63921879]
[1753084153427,10.4622,3789.1,3788.9,2.63927063]
[1753084153428,10.8941,3789.1,3788.9,2.63927063]
[1753084153625,10.4622,3789.1,3788.8,2.63933389]
[1753084153794,0.4319,3789.0,3788.9,2.63927367]
[1753084155197,0.4319,3789.0,3788.7,2.63938076]
[1753084155404,0.8224,3788.8,3788.7,2.63938076]
[1753084155726,0.8224,3788.8,3788.6,2.6394737]
[1753084155727,0.9536,3788.8,3788.6,2.6394737]
[1753084155937,4.4309,3788.7,3788.6,5.6394737]
[1753084156600,4.4309,3788.7,3788.6,2.6394737]
[1753084157140,4.4309,3788.7,3788.4,3.001]
[1753084157340,3.999,3788.7,3788.6,2.63949743]
[1753084158042,4.4309,3788.7,3788.6,2.63949743]
[1753084158340,4.4309,3788.7,3788.4,2.6405936]
[1753084158511,3.999,3788.7,3788.4,2.6405936]
[1753084158715,0.4319,3788.6,3788.4,2.6405936]
[1753084158925,0.9536,3788.8,3788.6,2.63947959]
[1753084159221,3.998,3788.7,3788.6,2.63947959]
[1753084159533,4.4299,3788.7,3788.5,2.63954308]
[1753084159902,0.4319,3788.6,3788.4,2.64061316]
[1753084160114,0.9536,3788.8,3788.4,2.64061316]
[1753084160115,4.4289,3788.5,3788.4,2.64061316]
[1753084160510,4.4289,3788.5,3788.4,0.001]
[1753084161231,4.4289,3788.5,3788.4,2.64063678]
[1753084161800,0.9536,3788.8,3788.5,2.63949752]
[1753084162001,4.4289,3788.7,3788.6,2.63949743]
[1753084163134,3.997,3788.7,3788.6,2.63949743]
[1753084163831,0.9536,3788.8,3788.7,2.63942777]
[1753084164029,4.1282,3788.8,3788.6,2.63944065]
[1753084165454,4.1282,3788.8,3788.7,2.63942777]
[1753084165749,4.1272,3788.8,3788.7,2.63942777]
[1753084167964,4.1272,3788.8,3788.5,3.09966286]
[1753084168164,4.1272,3788.8,3788.7,2.63942777]
[1753084170969,4.1272,3788.8,3788.4,0.001]
[1753084171286,0.4319,3788.7,3788.6,2.63948478]
[1753084171679,4.1272,3788.8,3788.6,2.63948478]
[1753084172185,4.5591,3788.8,3788.5,2.63955175]
[1753084173043,4.1272,3788.8,3788.4,0.001]
[1753084173244,0.4319,3788.7,3788.5,2.63951211]
[1753084173471,3.996,3788.6,3788.5,2.63951211]
[1753084173981,3.996,3788.6,3788.4,0.001]
[1753084174280,4.4279,3788.6,3788.4,2.6406258]
[1753084174572,4.4279,3788.6,3788.5,2.63956711]
[1753084174779,3.996,3788.6,3788.5,2.63956711]
[1753084175479,3.996,3788.6,3788.4,2.64061667]
[1753084175665,0.1312,3788.8,3788.5,2.63956711]
[1753084175869,3.996,3788.7,3788.6,2.63943871]
[1753084176065,3.996,3788.7,3788.5,2.63955567]
[1753084176271,3.996,3788.7,3788.5,2.64055567]
[1753084177146,3.996,3788.7,3788.5,0.001]
[1753084177470,4.4279,3788.7,3788.5,0.001]
[1753084178598,3.996,3788.7,3788.5,0.001]
[1753084178810,1.2053,3788.6,3788.5,0.001]
[1753084179300,3.84479743,3788.6,3788.5,0.001]
[1753084193755,3.84479743,3788.6,3788.5,1e-08]
[1753084193908,6.84479743,3788.6,3788.5,1e-08]
[1753084194217,6.55036711,3788.5,3788.4,1e-08]
[1753084194412,10.98836711,3788.5,3788.4,1e-08]
[1753084194634,10.54636711,3788.5,3788.4,1e-08]
[1753084194843,10.98836711,3788.5,3788.4,1e-08]
[1753084197314,18.78836711,3788.5,3788.4,1e-08]
[1753084199844,22.78836711,3788.5,3788.4,1e-08]
[1753084200561,2.63984583,3788.1,3788.0,0.02840625]
[1753084200853,0.8271,3787.8,3786.8,0.001]
[1753084201052,9.41524952,3787.0,3786.8,0.001]
[1753084201257,13.41224952,3787.0,3786.8,0.001]
[1753084201453,13.85424952,3787.0,3786.8,0.001]
[1753084202844,7.39941262,3787.0,3786.8,0.001]
[1753084203041,7.84141262,3787.0,3786.8,0.001]
[1753084204639,1.2038,3787.0,3786.8,0.001]
[1753084204851,6.63761262,3787.0,3786.8,0.001]
[1753084205361,2.64061262,3787.0,3786.8,0.001]
[1753084205665,6.63761262,3787.0,3786.8,0.001]
[1753084206933,7.07961262,3787.0,3786.8,0.001]
[1753084208457,13.09244952,3787.0,3786.8,0.001]
[1753084209365,2.64061262,3787.0,3786.8,0.001]
[1753084209580,6.63761262,3787.0,3786.8,0.001]
[1753084211259,7.86021262,3787.0,3786.8,0.001]
[1753084211573,2.64089156,3786.6,3786.5,0.001]
[1753084211750,16.40852846,3786.6,3786.5,0.001]
[1753084211954,24.67242846,3786.6,3786.5,0.001]
[1753084212274,2.64117056,3786.2,3786.1,0.04]
[1753084212475,13.42740746,3786.2,3786.1,0.04]
[1753084212845,13.89130746,3786.2,3786.1,0.04]
[1753084213984,14.02893405,3786.2,3786.1,0.04]
[1753084216651,10.03193405,3786.2,3786.1,0.04]
[1753084216977,14.02993405,3786.2,3786.1,0.04]
[1753084217175,10.03193405,3786.2,3786.1,0.04]
[1753084217380,14.02993405,3786.2,3786.1,0.04]
[1753084220074,10.03193405,3786.2,3786.1,0.041]
[1753084220279,14.02993405,3786.2,3786.1,0.041]
[1753084221554,10.03193405,3786.2,3786.1,0.041]
[1753084221754,14.02993405,3786.2,3786.1,0.041]
[1753084225079,10.03193405,3786.2,3786.1,0.041]
[1753084225281,14.03093405,3786.2,3786.1,0.041]
[1753084229248,17.03093405,3786.2,3786.1,0.041]
[1753084229953,12.56803405,3786.2,3786.1,0.041]
[1753084230158,2.77879715,3786.2,3786.1,0.041]
[1753084230358,6.77779715,3786.2,3786.1,0.4849]
[1753084230558,4.13662659,3786.2,3786.1,0.4849]
[1753084230769,3.999,3786.2,3786.1,0.4849]
[1753084231063,6.64017056,3786.2,3786.1,0.4849]
[1753084231276,2.64117056,3786.2,3786.1,0.4849]
[1753084231493,2.64112847,3786.3,3786.1,0.4849]
[1753084231672,3.999,3786.2,3786.1,0.4849]
[1753084231869,10.11806615,3786.6,3786.2,1.2644]
[1753084232066,10.11806615,3786.6,3786.3,0.4439]
[1753084232270,3.999,3786.5,3786.3,0.4439]
[1753084232859,0.5,3786.4,3786.3,0.4439]
[1753084233292,4.499,3786.4,3786.3,0.4439]
[1753084233692,2.77310081,3786.3,3786.2,0.8205]
[1753084234259,2.64117056,3786.2,3786.1,0.041]
[1753084234475,6.64017056,3786.2,3786.1,0.041]
[1753084235482,16.88889312,3786.2,3786.1,0.041]
[1753084235664,17.35279312,3786.2,3786.1,0.041]
[1753084236457,16.88889312,3786.2,3786.1,0.041]
[1753084236675,17.35279312,3786.2,3786.1,0.041]
[1753084237027,23.36563002,3786.2,3786.1,0.041]
[1753084239125,31.16563002,3786.2,3786.1,0.041]
[1753084240788,30.70573002,3786.2,3786.1,0.041]
[1753084241185,6.45874032,3786.1,3786.0,1e-08]
[1753084241491,6.92454032,3786.1,3786.0,1e-08]
[1753084242792,12.93737722,3786.1,3786.0,1e-08]
[1753084242992,16.94237722,3786.1,3786.0,1e-08]
[1753084243922,20.94237722,3786.1,3786.0,1e-08]
[1753084244734,28.74237722,3786.1,3786.0,1e-08]
[1753084246239,2.64131008,3786.0,3785.9,1e-08]
[1753084246466,14.68101008,3786.0,3785.9,1e-08]
[1753084246827,14.21521008,3786.0,3785.9,1e-08]
[1753084247143,18.68501008,3786.0,3785.9,1e-08]
[1753084247352,18.22021008,3786.0,3785.9,1e-08]
[1753084247513,18.68601008,3786.0,3785.9,1e-08]
[1753084248436,6.56057985,3785.9,3785.8,1e-08]
[1753084248607,7.02637985,3785.9,3785.8,1e-08]
[1753084249936,5.64144962,3785.8,3785.7,1e-08]
[1753084250252,10.94334962,3785.8,3785.7,1e-08]
[1753084251245,40.94334962,3785.8,3785.7,1e-08]
[1753084251448,24.75618652,3785.8,3785.7,1e-08]
[1753084251817,54.75618652,3785.8,3785.7,1e-08]
[1753084252146,5.64172874,3785.4,3785.3,0.001]
[1753084252345,15.65956564,3785.4,3785.3,0.001]
[1753084252650,2.64228716,3784.6,3784.5,0.001]
[1753084252882,6.64728716,3784.6,3784.5,0.001]
[1753084253052,9.64728716,3784.6,3784.5,0.001]
[1753084253675,10.11308716,3784.6,3784.5,0.001]
[1753084255065,17.91308716,3784.6,3784.5,1e-08]
[1753084255900,18.81589154,3784.6,3784.5,1e-08]
[1753084256101,2.64291566,3783.7,3783.6,0.004]
[1753084256397,19.00475256,3783.7,3783.6,0.004]
[1753084257269,19.80055256,3783.7,3783.6,0.004]
[1753084257642,23.26635256,3783.7,3783.6,0.004]
[1753084259687,23.46294443,3783.7,3783.6,0.004]
[1753084260059,22.99714443,3783.7,3783.6,0.004]
[1753084260284,22.20134443,3783.7,3783.6,0.004]
[1753084260790,18.19234443,3783.7,3783.6,0.004]
[1753084260972,12.17950753,3783.7,3783.6,0.004]
[1753084261174,22.20434443,3783.7,3783.6,0.004]
[1753084261577,22.20534443,3783.7,3783.6,0.004]
[1753084261889,22.67114443,3783.7,3783.6,0.004]
[1753084262664,22.20534443,3783.7,3783.6,0.004]
[1753084263290,2.64326496,3783.2,3783.1,0.048]
[1753084263468,6.65826496,3783.2,3783.1,0.495]
[1753084263987,6.66326496,3783.2,3783.1,0.495]
[1753084264190,6.66326496,3783.2,3783.1,0.048]
[1753084264393,13.00426496,3783.2,3783.1,0.048]
[1753084264592,8.98526496,3783.2,3783.1,0.048]
[1753084264751,13.00426496,3783.2,3783.1,0.495]
[1753084265515,8.98526496,3783.2,3783.1,0.495]
[1753084265714,13.00426496,3783.2,3783.1,0.495]
[1753084265937,6.342,3783.2,3783.1,0.495]
[1753084266221,10.361,3783.2,3783.1,0.495]
[1753084266727,10.361,3783.2,3783.1,1.2956]
[1753084268082,6.342,3783.2,3783.1,1.2956]
[1753084268284,13.00426496,3783.2,3783.1,1.2956]
[1753084268784,10.361,3783.2,3783.1,1.2956]
[1753084270324,6.342,3783.2,3783.1,3.93893483]
[1753084270622,10.361,3783.2,3783.1,3.93893483]
[1753084271618,10.361,3783.2,3783.1,1.2956]
[1753084272320,10.361,3783.2,3783.1,0.048]
[1753084272508,13.00426496,3783.2,3783.1,0.048]
[1753084274321,13.47646496,3783.2,3783.1,0.048]
[1753084275006,16.47646496,3783.2,3783.1,0.048]
[1753084275209,25.07926496,3783.2,3783.1,0.048]
[1753084276726,25.07926496,3783.2,3781.1,0.8691]
[1753084276727,0.8133,3782.6,3781.1,0.8691]
[1753084276930,6.0128369,3781.9,3781.1,1.3139]
[1753084277227,2.64438332,3781.6,3781.1,0.8691]
[1753084277394,6.66938332,3781.6,3781.2,0.4488]
[1753084277595,4.025,3781.6,3781.5,0.4458]
[1753084277822,12.68222022,3781.6,3781.5,0.001]
[1753084278956,6.66938332,3781.6,3781.5,0.001]
[1753084279321,4.025,3781.6,3781.5,0.4458]
[1753084280118,4.025,3781.6,3781.5,0.001]
[1753084280332,3.0,3781.5,3781.2,0.004]
[1753084280531,1.46532773,3782.5,3781.3,1.227]
[1753084280532,6.8237369,3782.4,3781.3,1.227]
[1753084280733,2.64417697,3781.9,3781.4,0.4448]
[1753084280938,4.093,3781.8,3781.4,0.4448]
[1753084281136,4.093,3781.8,3781.5,0.4448]
[1753084281561,4.093,3781.8,3781.6,0.4448]
[1753084281751,4.093,3781.8,3781.3,0.7822]
[1753084281952,4.093,3781.8,3781.7,0.4448]
[1753084282182,4.094,3781.8,3781.7,0.4448]
[1753084282468,1.46532773,3782.5,3781.8,0.777]
[1753084282660,4.096,3782.4,3782.2,0.777]
[1753084282903,1.46532773,3782.5,3782.3,0.4448]
[1753084283200,1.46532773,3782.5,3782.2,0.777]
[1753084283201,1.46532773,3782.5,3782.4,3.90292402]
[1753084283352,5.56132773,3782.5,3782.4,3.90292402]
[1753084284359,5.56132773,3782.5,3782.4,1.2591]
[1753084284667,5.56032773,3782.5,3782.4,3.90292402]
[1753084286685,5.56032773,3782.5,3782.4,4.55771262]
[1753084286860,4.095,3782.5,3782.4,1.2591]
[1753084287064,4.095,3782.5,3782.4,3.90292402]
[1753084287461,0.132,3782.6,3782.5,2.64375413]
[1753084287653,4.229,3782.6,3782.5,3.08855413]
[1753084289688,0.132,3782.6,3782.5,3.74322797]
[1753084289890,6.344,3783.7,3783.1,2.64332072]
[1753084290052,4.095,3783.6,3783.2,1.2638]
[1753084290256,4.095,3783.6,3783.5,2.64305537]
[1753084290594,4.095,3783.6,3783.5,3.08785537]
[1753084290966,0.8248,3784.4,3783.6,2.64295877]
[1753084291168,0.8248,3784.4,3784.0,0.7827]
[1753084291169,6.343,3784.4,3784.0,0.7827]
[1753084291372,4.095,3784.3,3784.1,0.4448]
[1753084291677,4.095,3784.3,3784.1,3.08743084]
[1753084291904,4.095,3784.3,3784.0,0.7827]
[1753084291905,4.095,3784.3,3784.2,2.64256646]
[1753084292063,4.095,3784.3,3784.2,0.4448]
[1753084292260,4.095,3784.3,3784.2,3.08736646]
[1753084294573,4.227,3784.3,3784.2,3.08736646]
[1753084296373,4.227,3784.3,3784.2,3.87466646]
[1753084296573,4.227,3784.3,3784.2,4.52640254]
[1753084297499,4.095,3784.3,3784.2,4.52640254]
[1753084301184,0.132,3784.8,3784.2,4.52640254]
[1753084301185,0.132,3784.8,3784.3,0.7815]
[1753084301427,4.087,3784.7,3784.6,2.64227347]
[1753084301591,4.087,3784.7,3784.6,4.07580779]
[1753084301797,0.132,3784.8,3784.6,4.07580779]
[1753084301798,0.132,3784.8,3784.7,2.64221734]
[1753084301994,4.223,3784.8,3784.7,2.64221734]
[1753084302328,4.223,3784.8,3784.7,3.09641734]
[1753084302826,4.223,3784.8,3784.6,0.7815]
[1753084303224,4.223,3784.8,3784.6,3.4237811]
[1753084303424,4.223,3784.8,3784.6,3.8779811]
[1753084303921,4.223,3784.8,3783.7,4.091]
[1753084303922,4.223,3784.8,3784.0,0.7976]
[1753084304130,0.132,3784.4,3784.0,0.7976]
[1753084304333,0.132,3784.0,3783.7,0.776]
[1753084304497,0.132,3783.7,3783.4,0.4542]
[1753084304695,2.6428933,3783.8,3783.4,0.4542]
[1753084304696,0.132,3783.5,3783.4,0.4542]
[1753084304897,4.224,3783.5,3783.3,0.776]
[1753084305230,4.224,3783.5,3783.3,1.2302]
[1753084305417,4.224,3783.5,3783.4,0.4542]
[1753084306505,4.224,3783.5,3783.1,0.15147436]
[1753084306705,2.64315077,3783.4,3783.1,0.15147436]
[1753084306906,0.132,3783.3,3783.1,0.15147436]
[1753084307408,0.132,3783.3,3783.1,0.60567436]
[1753084308105,0.132,3783.3,3783.1,0.15147436]